[Event "FIDE WY-U16 Olympiad 2022"]
[Site "Nakhchivan"]
[Date "2022.10.04"]
[Round "3.13"]
[White "Nemsadze, Daviti"]
[Black "Daneshvar, Bardiya"]
[Result "1-0"]
[ECO "B68"]
[WhiteElo "2012"]
[BlackElo "2515"]
[Annotator "TA"]
[PlyCount "61"]
[EventDate "2022.10.02"]
[EventType "team-tourn"]
[EventCountry "AZE"]
[SourceTitle "playchess.com"]
[Source "ChessBase"]
[SourceQuality "1"]
[WhiteTeam "Georgia"]
[BlackTeam "Iran"]
[WhiteTeamCountry "GEO"]
[BlackTeamCountry "IRI"]
[TimeControl "40/5400+30:1800+30"]

{[%evp 19,61,20,15,10,25,21,27,16,29,29,124,119,137,81,81,52,72,85,83,58,101,0,65,0,179,0,736,670,1444,1415,1370,1308,1246,1279,2147,1176,1108,856,1381,1363,1339,1243,1965,1605]} 1. e4 {[%emt 0:00:07]} c5 {[%emt 0:00:03]} 2. Nf3 {[%emt 0:00:08]} d6 {[%emt 0:00:04]} 3. d4 {[%emt 0:00:13]} cxd4 {[%emt 0:00:04]} 4. Nxd4 {[%emt 0:00:02]} Nf6 {[%emt 0:00:10]} 5. Nc3 {[%emt 0:00:06]} Nc6 {[%emt 0:00:04]} 6. Bg5 {[%emt 0:00:34]} e6 {[%emt 0:00:07]} 7. Qd2 {[%emt 0:09:45]} a6 {[%emt 0:00:25]} 8. O-O-O {[%emt 0:00:07]} Bd7 {[%emt 0:00:12]} 9. f4 {[%emt 0:10:28]} Be7 {[%emt 0:00:25] The modern move.} 10. Be2 {[%emt 0:07:21]} h6 {[%emt 0:05:11]} 11. Bh4 {[%emt 0:01:31] B68: Sicilian: Richter-Rauzer: 7...a6 8 0-0-0 Bd7 9 f4 Be7 .} b5 {[%emt 0:00:14] 11...Qc7 is not played anymore.} 12. Bf3 {[%emt 0:10:31][%cal Oe4e5]} b4 {[%emt 0:18:19]} 13. Nce2 {[%emt 0:00:43] [#] Threatens to win with Nxc6. White has an edge.} Rc8 $146 {[%emt 0:07:28]} ({Predecessor:} 13... Qa5 14. Kb1 Rc8 15. Nb3 Qc7 16. Bf2 a5 17. Nbd4 Nxd4 18. Nxd4 e5 19. fxe5 dxe5 {0-1 (32) Cloutier,M (2040)-Enkh Amar,G (2140) Montreal 2014}) 14. Bxf6 {[%emt 0:10:54]} gxf6 {[%emt 0:02:28]} (14... Bxf6 $11 15. Nxc6 Bxc6) 15. Nxc6 $1 $16 {[%emt 0:00:28] White is more active.} Bxc6 {[%emt 0:01:25]} 16. Nd4 {[%emt 0:00:12]} (16. Qxb4 $142 O-O 17. Kb1) 16... Qb6 {[%emt 0:06:01]} 17. Kb1 {[%emt 0:07:20]} Bb7 {[%emt 0:05:31]} 18. Rhe1 {[%emt 0:02:38]} a5 {[%emt 0:07:35]} 19. Bh5 {[%emt 0:02:06]} Kf8 $1 {[%emt 0:00:53]} 20. Qe2 {[%emt 0:10:52]} ({White should try} 20. Qd3 $16) 20... Qc5 {[%emt 0:06:12] [#]} (20... Rc5 $1 $11) 21. Nb3 {[%emt 0:02:53]} ({White should play} 21. Bxf7 $1 $14 Kxf7 22. Qg4) 21... Qc7 $2 {[%emt 0:00:51] [#]} (21... Qb6 $1 $11 {and Black stays safe.}) 22. Nd4 $2 {[%emt 0:04:57]} (22. Bxf7 $1 $18 {[%mdl 512]} Ba6 23. Qxa6 Qxc2+ 24. Ka1 Kxf7 25. Qxa5) 22... a4 $2 {[%emt 0:03:02][%mdl 8192] [#]} (22... Qc5 $11) 23. Bxf7 $1 $18 {[%emt 0:00:27][%mdl 512] Qh5 is the strong threat. White is clearly winning.} Ba6 {[%emt 0:05:35]} (23... e5 24. Ne6+) 24. Qh5 {[%emt 0:01:18][%cal Rd4e6]} Bc4 {[%emt 0:00:26]} 25. Bxe6 {[%emt 0:00:52][%csl Ge6][%cal Rh5f7]} Bd8 {[%emt 0:00:15]} 26. b3 {[%emt 0:00:56]} Ba6 {[%emt 0:00:27]} 27. Bxc8 {[%emt 0:01:47]} Bxc8 {[%emt 0:00:15]} 28. Qd5 {[%emt 0:00:22]} Be7 {[%emt 0:01:56]} 29. e5 {[%emt 0:00:48] Intending Ne6+ and mate.} dxe5 {[%emt 0:00:21]} 30. fxe5 {[%emt 0:01:04] Hoping for Ne6+.} a3 {[%emt 0:00:12]} 31. Nb5 {[%emt 0:00:35] Weighted Error Value: White=0.33/Black=0.44} 1-0

[Event "FIDE WY-U16 Olympiad 2022"]
[Site "Nakhchivan"]
[Date "2022.10.04"]
[Round "3.13"]
[White "Swarnavo, Choudhury"]
[Black "Teh, Rui Gen"]
[Result "1/2-1/2"]
[ECO "B36"]
[WhiteElo "1979"]
[BlackElo "1824"]
[Annotator "TA"]
[PlyCount "89"]
[EventDate "2022.10.02"]
[EventType "team-tourn"]
[EventCountry "AZE"]
[SourceTitle "playchess.com"]
[Source "ChessBase"]
[SourceQuality "1"]
[BlackTeam "Malaysia"]
[BlackTeamCountry "MAS"]
[TimeControl "40/5400+30:1800+30"]

{[%evp 21,89,8,52,36,50,14,11,14,20,25,22,10,13,0,7,2,10,-64,-51,-71,-69,-65,-35,-58,-38,-52,-34,-35,-29,-33,-37,-83,-25,-85,-58,-79,-20,-22,-26,-19,-18,-56,-26,-39,-39,-43,-22,-22,-22,-24,-10,-11,-6,-6,0,0,0,0,0,0,0,0,0,0,0,0,0,0,0,0]} 1. e4 {[%emt 0:00:09]} c5 {[%emt 0:00:18]} 2. Nf3 {[%emt 0:00:08]} g6 {[%emt 0:00:13]} 3. d4 {[%emt 0:00:26]} cxd4 {[%emt 0:00:19]} 4. Nxd4 {[%emt 0:00:11]} Nc6 {[%emt 0:00:05]} 5. c4 {[%emt 0:01:33]} Nf6 {[%emt 0:00:24]} 6. Nc3 {[%emt 0:00:41]} d6 {[%emt 0:00:13]} 7. Be2 {[%emt 0:02:33]} Nxd4 {[%emt 0:00:09]} 8. Qxd4 {[%emt 0:00:06]} Bg7 {[%emt 0:00:04]} 9. Be3 {[%emt 0:01:05]} O-O {[%emt 0:00:05]} 10. Qd2 {[%emt 0:00:11]} Be6 {[%emt 0:00:05]} 11. f3 {[%emt 0:01:08]} Qa5 {[%emt 0:01:47]} (11... Rc8 $5 {[%cal Re6c4]}) 12. b3 {[%emt 0:02:40] B36: Sicilian: Maroczy Bind: Gurgenidze System.} Rfc8 {[%emt 0:04:16][%cal Of6g4] [#]} 13. Na4 $146 {[%emt 0:06:10]} ({Predecessor:} 13. Rc1 a6 14. Na4 Qxd2+ 15. Kxd2 Nd7 16. g4 f5 17. exf5 gxf5 18. g5 Rd8 19. f4 Rab8 20. Nc3 Nc5 21. Bf3 b5 22. cxb5 axb5 23. Nd5 Bxd5 24. Bxd5+ e6 {0-1 (80) Bayo Milagro,A (2233)-Vakhlamov,I (2413) Chess.com INT 2021}) 13... Qxd2+ {[%emt 0:08:21]} 14. Kxd2 {[%emt 0:00:13]} Nd7 {[%emt 0:08:33]} 15. Rac1 {[%emt 0:09:15]} Nc5 {[%emt 0:05:09]} 16. Nxc5 {[%emt 0:14:39]} dxc5 {[%emt 0:00:11]} 17. f4 {[%emt 0:01:53]} Rd8+ {[%emt 0:13:45]} 18. Kc2 {[%emt 0:02:44]} Bd4 {[%emt 0:10:39]} 19. Bd2 {[%emt 0:06:39]} (19. Bxd4 $11 Rxd4 20. Bf3) 19... Bd7 $15 {[%emt 0:07:40]} 20. Rcd1 {[%emt 0:08:41]} Bc6 {[%emt 0:11:56]} 21. Bf3 {[%emt 0:12:33]} f6 {[%emt 0:05:34]} 22. Rhe1 {[%emt 0:05:51]} Kf7 {[%emt 0:13:01]} 23. Bc3 {[%emt 0:09:03]} Bxc3 {[%emt 0:01:29]} 24. Kxc3 {[%emt 0:00:18]} e5 {[%emt 0:00:09]} 25. fxe5 {[%emt 0:02:16]} fxe5 {[%emt 0:00:07]} 26. a3 {[%emt 0:01:46]} (26. Rxd8 $15 {is more appropriate.} Rxd8 27. g3) 26... Ke7 {[%emt 0:02:57]} (26... Rd4 $17) 27. Kc2 {[%emt 0:02:40]} (27. b4 $11) 27... b6 {[%emt 0:00:50]} 28. Rd3 {[%emt 0:03:52]} Rxd3 {[%emt 0:00:41]} (28... Rd4 $17) 29. Kxd3 $17 {[%emt 0:00:01][%mdl 4096] Endgame KRB-KRB} Rd8+ {[%emt 0:00:06]} 30. Ke3 {[%emt 0:00:25]} Rd4 {[%emt 0:04:09]} 31. Rd1 {[%emt 0:01:17]} Kd6 {[%emt 0:01:47]} 32. Rxd4+ {[%emt 0:00:40]} cxd4+ $11 {[%emt 0:00:11] KB-KB} 33. Kd3 {[%emt 0:00:16]} a5 {[%emt 0:00:46]} 34. b4 {[%emt 0:00:38]} Ba4 {[%emt 0:00:30]} 35. Bg4 {[%emt 0:00:42]} axb4 {[%emt 0:00:36]} 36. axb4 {The position is equal.} Bc6 {[%emt 0:00:18]} 37. Bc8 {[%emt 0:02:03]} Bd7 {[%emt 0:00:36]} 38. Bxd7 {[%emt 0:00:44]} Kxd7 {[%emt 0:00:04] KP-KP} 39. g4 {[%emt 0:00:14]} h5 {[%emt 0:00:36]} 40. g5 {[%emt 0:00:06]} Kc6 {[%emt 0:00:17]} 41. h4 {[%emt 0:30:26]} Kb7 {[%emt 0:30:30]} 42. Kc2 $1 {[%emt 0:00:14]} Kc7 {[%emt 0:00:23]} 43. Kd3 {[%emt 0:00:04]} Kb7 {[%emt 0:00:35]} 44. Kc2 {[%emt 0:00:06]} b5 {[%emt 0:00:09]} 45. c5 $1 {[%emt 0:00:07] Weighted Error Value: White=0.16 (very precise) /Black=0.13 (very precise)} ({Don't blunder} 45. cxb5 $2 Kb6 46. Kb2 Kxb5 $19) 1/2-1/2

[Event "FIDE WY-U16 Olympiad 2022"]
[Site "Nakhchivan"]
[Date "2022.10.04"]
[Round "3.14"]
[White "Ashraf, Artin"]
[Black "Shamatava, Nikolozi"]
[Result "1-0"]
[ECO "B38"]
[WhiteElo "2379"]
[BlackElo "1957"]
[Annotator "TA"]
[PlyCount "75"]
[EventDate "2022.10.02"]
[EventType "team-tourn"]
[EventCountry "AZE"]
[SourceTitle "playchess.com"]
[Source "ChessBase"]
[SourceQuality "1"]
[WhiteTeam "Iran"]
[BlackTeam "Georgia"]
[WhiteTeamCountry "IRI"]
[BlackTeamCountry "GEO"]
[TimeControl "40/5400+30:1800+30"]

{[%evp 23,75,54,71,71,93,68,81,84,102,101,141,136,157,150,151,145,137,146,204,174,221,205,590,590,554,554,961,954,918,906,1087,1006,1395,1154,29991,1001,1104,666,650,170,640,628,1936,1809,1745,1693,2729,2677,29977,29979,29981,29982,29981,6222]} 1. Nf3 {[%emt 0:00:19]} c5 {[%emt 0:00:06]} 2. c4 {[%emt 0:00:29]} Nc6 {[%emt 0:00:11]} 3. d4 {[%emt 0:00:05]} cxd4 {[%emt 0:00:06]} 4. Nxd4 {[%emt 0:00:11]} g6 {[%emt 0:00:19]} 5. e4 {[%emt 0:00:17]} Bg7 {[%emt 0:00:19]} 6. Be3 {[%emt 0:00:01]} d6 {[%emt 0:01:05]} 7. Nc3 {[%emt 0:00:13]} Nf6 {[%emt 0:01:42]} 8. Be2 {[%emt 0:00:34]} O-O {[%emt 0:02:00]} 9. O-O {[%emt 0:00:02]} Nxd4 {[%emt 0:03:16]} 10. Bxd4 {[%emt 0:00:34]} Be6 {[%emt 0:00:15]} 11. Qd2 {[%emt 0:08:13]} Qa5 {[%emt 0:11:16]} 12. Rad1 {[%emt 0:12:53]} Rfc8 {[%emt 0:01:39]} 13. b3 {[%emt 0:00:37] B38: Sicilian: Maroczy Bind with 5...Bg7 and 7...0-0.} Ne8 {[%emt 0:07:19] [#]} 14. Qe3 $146 {[%emt 0:16:28]} (14. Bxg7 {looks sharper.} Nxg7 15. f4 Rab8 16. Rf2) ({Predecessor:} 14. f4 Bxd4+ 15. Qxd4 Nf6 16. f5 Bd7 17. b4 Qb6 18. Qxb6 axb6 19. fxg6 hxg6 20. e5 Ra3 21. exf6 Rxc3 22. fxe7 {½-½ (32) So,W (2531)-Senador,E (2356) Manila 2007}) 14... Bxd4 {[%emt 0:02:58]} 15. Rxd4 {[%emt 0:00:04] White is better.} Ng7 {[%emt 0:06:12]} 16. f4 {[%emt 0:15:07]} f6 {[%emt 0:09:00]} 17. f5 {[%emt 0:05:41]} Bf7 {[%emt 0:00:06][%cal Rg6f5]} (17... gxf5 $2 18. exf5 Bf7 19. g4) 18. fxg6 $1 {[%emt 0:03:50]} hxg6 {[%emt 0:01:10]} 19. Nd5 {[%emt 0:04:06]} Bxd5 {[%emt 0:03:44]} 20. exd5 {[%emt 0:00:12]} Qb6 {[%emt 0:03:00]} (20... f5 $16 {is a better defense.}) 21. Bd3 {[%emt 0:00:41]} Kf7 {[%emt 0:00:58]} (21... f5 {was worth a try.} 22. g4 e5 23. dxe6 Rc5) 22. Kh1 $18 {[%emt 0:04:03][%cal Od3g6] White wants to mate with Bxg6+!} Rh8 $2 {[%emt 0:11:04] [#]} (22... f5 23. g4 (23. Re1 Re8 $14) 23... Rh8) 23. Bxg6+ $1 {[%emt 0:00:48][%mdl 512]} Kf8 {[%emt 0:04:13]} 24. Re1 {[%emt 0:00:40]} e5 {[%emt 0:00:28]} 25. dxe6 {[%emt 0:00:36]} Ke7 {[%emt 0:00:01]} 26. b4 {[%emt 0:03:13][%cal Oc4c5] Strongly threatening c5!} Rad8 {[%emt 0:02:15]} 27. c5 {[%emt 0:01:01]} Qc7 {[%emt 0:00:07]} 28. Qg3 {[%emt 0:00:21] And now Red1 would win.} Qb8 {[%emt 0:01:16] [#]} 29. cxd6+ {[%emt 0:00:31]} (29. Be8 $142 $1 {[%mdl 512]} Nf5 30. Qg6 Nh6 31. Qg7+ Kxe8 32. Qxh8+ Ke7 33. Qxh6 Rg8 34. Qh7+ Rg7 35. Qxg7+ Ke8 36. Qf7+ Kd8 37. Qd7#) 29... Rxd6 {[%emt 0:00:01]} 30. Rxd6 {[%emt 0:00:01]} Qxd6 {[%emt 0:00:01]} 31. Qxd6+ {[%emt 0:00:29]} Kxd6 {[%emt 0:00:06][%mdl 4096] Endgame KRB-KRN} 32. e7 {[%emt 0:00:12]} Ne8 {[%emt 0:00:23]} 33. Bxe8 {[%emt 0:00:15]} Rxe8 {[%emt 0:00:04]} 34. h4 {[%emt 0:00:18]} b5 {[%emt 0:00:20]} 35. g4 {[%emt 0:00:26]} Kd7 {[%emt 0:00:05]} 36. Kg2 {[%emt 0:00:22] White mates.} Rxe7 {[%emt 0:00:57]} 37. Rxe7+ {[%emt 0:00:01]} Kxe7 {[%emt 0:00:02]} 38. Kf3 {[%emt 0:00:23] Black got outplayed after the opening.  Weighted Error Value: White=0.64/Black=1.07} 1-0

[Event "FIDE WY-U16 Olympiad 2022"]
[Site "Nakhchivan"]
[Date "2022.10.04"]
[Round "3.14"]
[White "Navaratnam, Ishaan Quan Tze"]
[Black "Manon, Reja Neer"]
[Result "1-0"]
[ECO "B13"]
[WhiteElo "1862"]
[BlackElo "2107"]
[Annotator "TA"]
[PlyCount "111"]
[EventDate "2022.10.02"]
[EventType "team-tourn"]
[EventCountry "AZE"]
[SourceTitle "playchess.com"]
[Source "ChessBase"]
[SourceQuality "1"]
[WhiteTeam "Malaysia"]
[BlackTeam "Bangladesh"]
[WhiteTeamCountry "MAS"]
[BlackTeamCountry "BAN"]
[TimeControl "40/5400+30:1800+30"]

{[%evp 17,111,35,28,34,29,32,46,29,26,31,26,36,47,13,52,39,116,58,58,54,63,10,71,65,72,67,82,90,129,117,257,285,315,160,168,164,156,146,214,213,293,201,199,204,190,187,194,187,193,193,185,159,146,146,212,177,214,210,199,172,184,153,127,24,270,283,390,385,377,369,377,361,319,304,29963,29964,29962,29964,8183,6127,29980,29981,29981,29982,29982,29983,29985,29984,29986,29987,29987,29988,29988,29989,29989,29990]} 1. e4 {[%emt 0:00:03]} c6 {[%emt 0:00:08]} 2. d4 {[%emt 0:00:24]} d5 {[%emt 0:00:02]} 3. exd5 {[%emt 0:00:14]} cxd5 {[%emt 0:00:08]} 4. Bd3 {[%emt 0:00:08]} Nc6 {[%emt 0:00:04]} 5. c3 {[%emt 0:00:03]} Qc7 {[%emt 0:00:06]} 6. Ne2 {[%emt 0:00:29]} e6 {[%emt 0:00:53]} 7. Bf4 {[%emt 0:00:19]} Bd6 {[%emt 0:00:01]} 8. Bxd6 {[%emt 0:00:14]} Qxd6 {[%emt 0:00:02]} 9. O-O $1 {[%emt 0:00:29] The main line 9.0-0 scores better than 9.Nd2.} Nf6 {[%emt 0:00:33]} 10. Nd2 {[%emt 0:00:40] B13: Caro-Kann: Exchange Variation and Panov-Botvinnik Attack.} O-O {[%emt 0:00:10]} 11. Nf3 {[%emt 0:00:18]} Ne4 {[%emt 0:02:20]} 12. Bxe4 {[%emt 0:07:13] White is slightly better.} dxe4 {[%emt 0:00:23]} 13. Nd2 {[%emt 0:00:05]} f5 {[%emt 0:20:47]} 14. f3 {[%emt 0:03:20] [#]} e5 $146 {[%emt 0:14:24]} ({Predecessor:} 14... exf3 15. Nxf3 b6 16. Nc1 Ba6 17. Re1 Rf6 18. Nd3 Rh6 19. Nfe5 Nxe5 20. Nxe5 Bb7 {0-1 (42) Peretz,M-Kagan,S Nathanya 1969}) 15. dxe5 {[%emt 0:09:12]} (15. Nc4 $5 {[%cal Rc4d6]} Qc7 16. Nxe5 $11) 15... Qxe5 {[%emt 0:21:37]} 16. fxe4 $1 {[%emt 0:00:44]} f4 {[%emt 0:00:26]} ({Black should try} 16... Be6 $14) 17. Qc2 {[%emt 0:11:01]} (17. Rf2 $16) 17... Bg4 $14 {[%emt 0:01:23]} 18. Nf3 {[%emt 0:13:58]} Bxf3 {[%emt 0:07:34]} 19. Rxf3 {[%emt 0:00:29]} (19. gxf3 $14 Rad8 20. Rad1) 19... g5 {[%emt 0:04:04] [#]} (19... Rae8 $11) 20. Rd1 $1 $16 {[%emt 0:24:28]} Rad8 {[%emt 0:02:34]} 21. Rxd8 {[%emt 0:02:06]} Rxd8 {[%emt 0:03:15]} 22. Rd3 {[%emt 0:00:42]} Qc5+ {[%emt 0:06:21]} 23. Kf1 {[%emt 0:01:10]} Rf8 {[%emt 0:05:05]} (23... Rxd3 $16 24. Qxd3 h6) 24. Qb3+ $18 {[%emt 0:04:30]} Kh8 {[%emt 0:00:14]} 25. Qd5 {[%emt 0:00:19]} ({White has to play} 25. Qxb7 $18 {Strongly threatening Rd7.} Na5 26. Qd5 Qxd5 27. exd5) 25... Qe7 $16 {[%emt 0:01:25]} 26. Nd4 {[%emt 0:07:03]} Rd8 {[%emt 0:02:26]} 27. Qf5 {[%emt 0:00:37] aiming for Rh3.} Nxd4 {[%emt 0:03:50]} (27... h6 $16 28. Kf2 Ne5) 28. Rxd4 {[%emt 0:00:22][%mdl 4096] Endgame KQR-KQR} ({But not} 28. cxd4 Rf8 29. Qc5 Qxc5 30. dxc5 Kg8) 28... Rf8 {[%emt 0:00:34]} 29. Qd7 {[%emt 0:01:52]} Rf7 {[%emt 0:00:27]} 30. Qxe7 {[%emt 0:01:16]} Rxe7 $18 {[%emt 0:00:01] KR-KR} 31. h3 {[%emt 0:01:29]} Kg7 {[%emt 0:00:40]} 32. Ke2 {[%emt 0:00:21]} Kf6 {[%emt 0:01:53]} 33. Kf3 {[%emt 0:00:36]} Re6 {[%emt 0:00:51]} 34. Rd7 {[%emt 0:01:18]} Rb6 {[%emt 0:00:11]} 35. b3 {[%emt 0:01:38] White is more active.} (35. Rxh7 $6 Rxb2 36. h4 Kg6 $14) 35... h6 {[%emt 0:00:58]} (35... Ra6 $16 {was worth a try.}) 36. c4 {[%emt 0:01:34]} Ke6 {[%emt 0:01:12]} 37. Rd5 {[%emt 0:01:48]} Ra6 {[%emt 0:00:39]} 38. Rd2 {[%emt 0:00:14]} Ke5 {[%emt 0:00:28]} 39. c5 {[%emt 0:01:30] [#] a4 is the strong threat.} Ra3 {[%emt 0:01:08]} 40. Rc2 {[%emt 0:03:50]} ({White should play} 40. Rd5+ $16 Kf6 41. Rd6+ Kg7 42. Rd7+ Kf6 43. Rd6+ (43. Rxb7 Rxa2 44. b4 Ra3+ 45. Ke2 a6 $16) 43... Kg7 44. Rd2) 40... Ra5 $2 {[%emt 0:00:10]} (40... a5 $11 {and Black stays safe.}) 41. a4 {[%emt 0:31:29]} Ra6 {[%emt 0:06:30]} 42. Rd2 {[%emt 0:00:00]} Rc6 {[%emt 0:00:48]} 43. Rd5+ {[%emt 0:00:00]} Ke6 {[%emt 0:00:01]} 44. h4 {[%emt 0:00:00]} gxh4 {[%emt 0:00:29]} 45. Rd6+ {[%emt 0:00:00]} ({Don't play} 45. Kxf4 $6 a5 46. Kg4 Ke7 47. Kxh4 Re6) 45... Rxd6 $2 {[%emt 0:00:07]} (45... Ke5 $18) 46. cxd6 {[%emt 0:00:00]} Kxd6 {[%emt 0:01:21]} 47. Kxf4 {[%emt 0:00:00] KP-KP} Ke6 {[%emt 0:00:17]} 48. e5 {[%emt 0:00:00][%cal Be4e5,Be5e6,Be6e7][%mdl 32] White threatens b4 and mate.} a5 {[%emt 0:00:43]} 49. Ke4 {[%emt 0:00:00] White mates.} Ke7 {[%emt 0:00:19]} 50. Kd5 {[%emt 0:00:00]} Kd7 {[%emt 0:01:36]} 51. e6+ {[%emt 0:00:00]} Kc7 {[%emt 0:00:05]} 52. Ke5 {[%emt 0:00:00]} Kd8 {[%emt 0:00:27]} 53. Kf6 {[%emt 0:00:00]} Ke8 {[%emt 0:00:03]} 54. e7 {[%emt 0:00:00]} b6 {[%emt 0:00:16]} 55. Ke6 {[%emt 0:00:00]} h5 {[%emt 0:00:23]} 56. Kd6 {[%emt 0:00:00] Weighted Error Value: White=0.18 (very precise) /Black=0.48} 1-0